Cogmind - Beta 15 @@@ ROGUE MODE // 2025.08.21 @ 13:29:34 Player: NQH Result: Destroyed by OT-6B5(R) with Subdweller Beam Cannon Performance ------------- Evolutions (0) 0 Regions Visited (3) 600 Robots Destroyed (17) 85 Value Destroyed (403) 403 Prototype IDs (0) 0 Alien Tech Used (0) 0 Bonus (0) 0 TOTAL SCORE: 1088 Bonus ------- None Cogmind --------- Core Integrity 0/250 Matter 300/300 Energy 70/100 System Corruption 0% Temperature Cool (9) Movement Core (250) Ox4 Location -10/Subcaves Parts ------- > --- POWER (1) -------- (None) > --- PROPULSION (2) --- (None) > --- UTILITY (2) ------ Small Storage Unit > --- WEAPON (2) ------- Particle Cannon Particle Cannon > --- INVENTORY (8) ---- Cooling System ECM Suite Particle Cannon Particle Cannon Light Assault Rifle Battle Cannon Rocket Launcher Heavy Hammer Peak State ------------ > --- POWER ------------ Light Ion Engine > --- PROPULSION ------- Aluminum Leg Aluminum Leg > --- UTILITY ---------- Small Storage Unit Visual Processing Unit > --- WEAPON ----------- Assault Rifle Light Assault Rifle > --- INVENTORY -------- Cooling System ECM Suite Particle Cannon Particle Cannon Particle Cannon Particle Cannon Rocket Launcher Heavy Hammer [Rating: 9] Favorites ----------- Power Light Ion Engine Engine Light Ion Engine Propulsion Aluminum Leg Leg Aluminum Leg Utility Small Storage Unit Device ECM Suite Storage Small Storage Unit Processor Visual Processing Unit Weapon Particle Cannon Energy Cannon Particle Cannon Ballistic Gun Light Assault Rifle Launcher Rocket Launcher Build | -11 -10 -10 -10 ------- Run | Yrd Mat Min Sub Slots Evolved . | . . . . Power . | . . . . Propulsion . | . . . . Utility . | . . . . Weapon . | . . . . Parts Attached 16 | 5 4 4 3 Power 3 | 1 . 2 . Engine 3 | 1 . 2 . Core . | . . . . Reactor . | . . . . Propulsion 4 | 2 2 . . Treads . | . . . . Leg 4 | 2 2 . . Wheel . | . . . . Hover . | . . . . Flight . | . . . . Utility 3 | . 2 1 . Device 1 | . 1 . . Storage 1 | . 1 . . Processor 1 | . . 1 . Hackware . | . . . . Protection . | . . . . Artifact . | . . . . Weapon 6 | 2 . 1 3 Energy Gun . | . . . . Energy Cannon 2 | . . . 2 Ballistic Gun 3 | 2 . 1 . Ballistic Cannon . | . . . . Launcher 1 | . . . 1 Special Weapon . | . . . . Impact Weapon . | . . . . Slashing Weapon . | . . . . Piercing Weapon . | . . . . Special Melee Weapon . | . . . . Unidentified Prototypes . | . . . . Parts Lost 4 | . . . 4 Power 1 | . . . 1 Propulsion 2 | . . . 2 Utility . | . . . . Weapon 1 | . . . 1 Highest Loss Streak 4 | . . . 4 To Critical Strikes 1 | . . . 1 Average Backups 7 | . 6 8 7 Power . | . . . . Propulsion . | . . . . Utility 1 | . 2 2 2 Weapon 5 | . 4 5 5 Tool/Special . | . . . . Unused Backups 6 | . . 1 5 Power . | . . . . Propulsion . | . . . . Utility 2 | . . 1 1 Weapon 4 | . . . 4 Tool/Special . | . . . . Average Slot Usage (%) 70 | . 96 100 51 Engine 6 | . 14 14 1 Leg 13 | . 28 28 3 Device 4 | . 11 11 . Storage 13 | . 12 14 14 Processor 2 | . . 2 4 Energy Cannon 11 | . . . 18 Ballistic Gun 15 | . 28 28 6 Launcher 1 | . . . 2 Peak Build Rating 9 | 5 8 9 9 Average Rating 6 | 3 7 8 6 On Entrance 5 | . 5 8 9 Naked Turns . | . . . . Heaviest Build 13 | 6 13 13 13 Greatest Support 20 | 20 20 20 20 Greatest Overweight (x) 4 | . . . 4 Average Overweight (x) 1 | . . . 3 Largest Inventory Capacity 8 | 5 8 8 8 Average Capacity 7 | 5 7 8 8 Most Carried 8 | . 8 8 8 Average Carried 7 | . 7 7 7 Final Capacity 8 | 5 8 8 8 Final Carried 8 | . 8 8 8 Class Distribution -------------------- 80% | Mutant 19% | Scavenger-Mutant Dominant Class ---------------- Mutant | -10/Materials Scavenger-Mutant | -10/Mines Mutant | -10/Subcaves Resources | -11 -10 -10 -10 ----------- Run | Yrd Mat Min Sub Matter Collected 616 | 189 174 101 152 Remotely . | . . . . Salvage Created 465 | . 189 73 203 Parts 31 | . 10 10 11 Haulers Intercepted . | . . . . Recyclers Shooed 1 | . 1 . . Parts Field Recycled . | . . . . Retrieved Matter . | . . . . Parts Self-Destructed 6 | . . . 6 Prevented . | . . . . Kills | -11 -10 -10 -10 ------- Run | Yrd Mat Min Sub Combat Hostiles Destroyed 16 | . 6 5 5 Guns 12 | . 6 5 1 Cannons 1 | . . . 1 AOE 3 | . . . 3 Classes Destroyed 5 | . 3 . 2 Watcher 1 | . 1 . . Swarmer 8 | . 3 5 . Grunt 3 | . 3 . . Sentry 1 | . . . 1 Subdweller 4 | . . . 4 Best Kill Streak 3 | . 3 3 3 Combat Bots Only 3 | . 3 3 3 Max Kills in Single Turn 2 | . 1 1 2 Gunslinging . | . . . . Exploded 2 | . . . 2 Melee . | . . . . Uniques/NPCs Destroyed . | . . . . Combat | -11 -10 -10 -10 -------- Run | Yrd Mat Min Sub Hostile Shots Fired 97 | . 56 12 29 Missed 29 | . 19 3 7 Hits 68 | . 37 9 22 Projectile 68 | . 37 9 22 Critical Strikes 2 | . . . 2 Damage Taken 918 | . 342 74 502 Core 268 | . 107 6 155 Absorbed by Shields . | . . . . Core Remaining (%) 100 | 100 . . . Volleys Fired 72 | . 29 7 36 Largest 2 | . 2 2 2 Hottest 136 | . 40 40 136 Shots Fired 144 | . 58 14 72 Gun 105 | . 58 14 33 Cannon 32 | . . . 32 Launcher 7 | . . . 7 Special . | . . . . Kinetic 105 | . 58 14 33 Thermal 32 | . . . 32 Explosive 7 | . . . 7 Electromagnetic . | . . . . Robot Hit Streak 9 | . 7 4 9 Robot Miss Streak 3 | . 3 2 2 Penetration Max . | . . . . Secondary Targets 1 | . 1 . . Max Gunslinging Chain 1 | . 1 . . Shots Hit Robots 71 | . 35 7 29 Core Hits 26 | . 11 6 9 Critical Kills . | . . . . Critical Parts Destroyed . | . . . . Critical Strikes . | . . . . Melee Attacks . | . . . . Impact . | . . . . Slashing . | . . . . Piercing . | . . . . Sneak Attacks . | . . . . Combat Hostiles . | . . . . Follow-up Attacks . | . . . . Damage Inflicted 1087 | . 361 80 646 Guns 609 | . 361 80 168 Cannons 183 | . . . 183 Explosions 295 | . . . 295 Melee . | . . . . Ramming . | . . . . Kinetic 609 | . 361 80 168 Thermal 183 | . . . 183 Explosive 295 | . . . 295 Electromagnetic . | . . . . Impact . | . . . . Slashing . | . . . . Piercing . | . . . . Highest Corruption . | . . . . Average Corruption . | . . . . Corruption Purged . | . . . . Corruption Blocked . | . . . . Overload Shots . | . . . . Overflow Damage . | . . . . Projectiles . | . . . . Explosions . | . . . . Melee . | . . . . Knockbacks . | . . . . Impact . | . . . . Kinetic . | . . . . Secondary . | . . . . Self-Inflicted Damage . | . . . . Shots . | . . . . Rammed . | . . . . Targets Rammed . | . . . . Kicked . | . . . . Crushed . | . . . . Highest Temperature 308 | . 12 . 308 Average Temperature 56 | . 7 . 93 Received Heat Transfer 479 | . 84 . 395 Siege Activations . | . . . . Martial Activations . | . . . . Shielding Activations . | . . . . Robots Disrupted . | . . . . Combat Hostiles . | . . . . Robots Corrupted . | . . . . Combat Hostiles . | . . . . Parts Fried . | . . . . Impact Corruptions . | . . . . Robots Melted . | . . . . Combat Hostiles . | . . . . Parts Melted . | . . . . Heat Transferred 333 | . . . 333 Parts Sabotaged . | . . . . Parts Stolen . | . . . . Parts Stripped . | . . . . Power Chain Reactions . | . . . . Alert | -11 -10 -10 -10 ------- Run | Yrd Mat Min Sub Maximum Alert Level . | . . . . Low Security (%) 100 | 100 100 100 . Level 1 . | . . . . Level 2 . | . . . . Level 3 . | . . . . Level 4 . | . . . . Level 5 . | . . . . High Security . | . . . . Max Security . | . . . . Peak Influence 72 | . 72 70 . Initial 7 | . . 7 . Average 20 | . 24 19 . Influence Increases 289 | . 159 110 20 Destroy 0b10 Robot/C 240 | . 120 100 20 Destroy 0b10 Robot/NC 5 | . 5 . . Destroy Leader 32 | . 22 10 . Successful Hack 12 | . 12 . . Influence Decreases 289 | . 139 130 20 Entered New Map 13 | . . 13 . Time Decay 276 | . 139 117 20 Squads Dispatched 1 | . 1 . . Investigation 1 | . 1 . . Extermination . | . . . . Reinforcement . | . . . . Assault . | . . . . Garrison . | . . . . Intercept . | . . . . Searches Triggered . | . . . . Construction Impeded . | . . . . Haulers Reinforced . | . . . . Active Scanning Responses . | . . . . Cargo Convoy Interrupts . | . . . . Stealth | -11 -10 -10 -10 --------- Run | Yrd Mat Min Sub Distress Signals . | . . . . Communications Jammed . | . . . . Distress Signals . | . . . . Times Spotted 20 | . 9 5 6 Peak Tracking Total 3 | . 3 3 2 Tactical Retreats 1 | . 1 . . Traps | -11 -10 -10 -10 ------- Run | Yrd Mat Min Sub Traps Triggered 1 | . 1 . . Indirectly . | . . . . Trap Hack Attempts . | . . . . Triggered . | . . . . Disarmed . | . . . . Reprogrammed . | . . . . Reused . | . . . . Traps Extracted . | . . . . Installed . | . . . . Triggered . | . . . . Machines | -11 -10 -10 -10 ---------- Run | Yrd Mat Min Sub Machines Disabled . | . . . . Max in Single Turn . | . . . . Machines Repaired . | . . . . Machines Dismantled . | . . . . Machines Sabotaged . | . . . . Overloaded Fab Kills . | . . . . Hacking | -11 -10 -10 -10 --------- Run | Yrd Mat Min Sub Machines Accessed 1 | . 1 . . Terminals 1 | . 1 . . Fabricators . | . . . . Repair Stations . | . . . . Recycling Units . | . . . . Scanalyzers . | . . . . Garrison Access . | . . . . Total Hacks 1 | . 1 . . Successful 1 | . 1 . . Failed . | . . . . Catastrophic . | . . . . Database Lockouts . | . . . . Manual . | . . . . Terminals 1 | . 1 . . Fabricators . | . . . . Repair Stations . | . . . . Recycling Units . | . . . . Scanalyzers . | . . . . Garrison Access . | . . . . Terminal Hacks 1 | . 1 . . Record 1 | . 1 . . Fabricator Hacks . | . . . . Repair Station Hacks . | . . . . Recycling Unit Hacks . | . . . . Scanalyzer . | . . . . Garrison Access Hacks . | . . . . Unauthorized Hacks . | . . . . Terminals . | . . . . Fabricators . | . . . . Repair Stations . | . . . . Recycling Units . | . . . . Scanalyzers . | . . . . Garrison Access . | . . . . Data Cores Recovered . | . . . . Used . | . . . . Hacking Detections 1 | . 1 . . Full Trace Events . | . . . . Feedback Events . | . . . . Feedback Blocked . | . . . . Robot Schematics Acquired . | . . . . Robots Built . | . . . . Authchips . | . . . . Time . | . . . . Total Robot Build Rating . | . . . . Part Schematics Acquired . | . . . . Parts Built . | . . . . Authchips . | . . . . Time . | . . . . Total Part Build Rating . | . . . . Parts Repaired . | . . . . Time . | . . . . Parts Recycled . | . . . . Recycled Matter . | . . . . Retrieved Matter . | . . . . Retrieved Components . | . . . . Parts Scanalyzed . | . . . . Part Schematics Acquired . | . . . . Parts Damaged . | . . . . Bothacking | -11 -10 -10 -10 ------------ Run | Yrd Mat Min Sub Used RIF Installer . | . . . . Robots Hacked . | . . . . Non-combat . | . . . . Combat . | . . . . Robot Hacks Applied . | . . . . Relay Couplers Released . | . . . . Fabnet Peak Effective % . | . . . . Robots Rewired . | . . . . Allies Hacked . | . . . . Hacks Repelled . | . . . . Allies | -11 -10 -10 -10 -------- Run | Yrd Mat Min Sub Total Allies . | . . . . Largest Group . | . . . . Highest-Rated Group . | . . . . Highest-Rated Ally . | . . . . Total Orders . | . . . . Ally Attacks . | . . . . Total Damage . | . . . . Kills . | . . . . Allies Corrupted . | . . . . Allies Melted . | . . . . Intel | -11 -10 -10 -10 ------- Run | Yrd Mat Min Sub Active Infowar (turns) 1019 | . 324 379 316 Optics 370 | . . 54 316 ECM 649 | . 324 325 . Robot Analysis Total . | . . . . Derelict Logs Recovered 2 | . . 1 1 Drone Launches . | . . . . Drone Recoveries . | . . . . Exploration | -11 -10 -10 -10 ------------- Run | Yrd Mat Min Sub Turns Passed 1927 | 40 390 379 1118 Spaces Moved 1032 | 35 239 294 464 Core 397 | 12 . . 385 Treads . | . . . . Legs 635 | 23 239 294 79 Wheels . | . . . . Hover . | . . . . Flight . | . . . . Fastest Speed 50 | 50 120 120 120 Average Speed 161 | 96 120 120 214 Slowest Speed 250 | 120 120 120 250 Overloaded Moves . | . . . . Propulsion Burnouts . | . . . . Robots Hopped . | . . . . Potential Cave-ins . | . . . . Cave-ins Triggered 1 | . . . 1 Exploration Rate (%) 26 | 4 38 42 22 Regions Visited 3 Branch Regions 2 Pre-discovered Areas 3 | . . 2 1 Known Exits Taken . | . . . . Unknown Exits Taken 3 | 1 1 1 . Scrap Searched 1 | . . 1 . Spaces Dug 38 | . . . 38 Terrain Destroyed 63 | . . . 63 Melee . | . . . . Projectile . | . . . . AOE 63 | . . . 63 Terrain Rammed . | . . . . Walls Destroyed . | . . . . Machines Disabled . | . . . . Actions | -11 -10 -10 -10 --------- Run | Yrd Mat Min Sub Total 1160 | 39 290 309 522 Wait 23 | . 8 . 15 Move 1029 | 34 238 293 464 Hop . | . . . . Pick Up 12 | . 9 1 2 Fast Attach 6 | 5 1 . . Attach 2 | . 1 . 1 Detach 1 | . . . 1 Swap 8 | . 2 4 2 Drop 7 | . 2 4 1 Fire 72 | . 29 7 36 Melee . | . . . . Ram . | . . . . Kick . | . . . . Crush . | . . . . Escape Stasis . | . . . . Rewire . | . . . . Trap . | . . . . Miscellaneous . | . . . . Route ------- -11/Scrapyard -10/Materials -10/Mines (discovered 2 exits: [*Mat] / [*Sub]) -10/Subcaves History --------- Turn | Location | Event 17 | -11/Scrapyard | Discovered new exit (range 15) 41 | -11/Scrapyard | Entered Materials 238 | -10/Materials | Discovered new exit (range 16) 305 | -10/Materials | Build established: Mutant 431 | -10/Materials | Entered Mines 438 | -10/Mines | Received a Rocket Launcher from a helpful Derelict 499 | -10/Mines | Learned location of Storage (-9) 699 | -10/Mines | Discovered new exit (range 6) 701 | -10/Mines | Learned location of Zion (-6) 801 | -10/Mines | Discovered new exit (range 6) 810 | -10/Mines | Entered Subcaves 811 | -10/Subcaves | Approached by a straggling Scientist 814 | -10/Subcaves | Shifting Twisted Machinery released Battle Cannon 836 | -10/Subcaves | A swath of the cavern ceiling suddenly collapsed 853 | -10/Subcaves | Build established: Scavenger-Mutant 920 | -10/Subcaves | Core integrity fell below 50% 954 | -10/Subcaves | Met a Zionite searching for "candidates" 969 | -10/Subcaves | Lost 4 parts (1p2n1w) 1097 | -10/Subcaves | Crushed by falling debris 1101 | -10/Subcaves | Ambushed by Subdweller buried in earth 1257 | -10/Subcaves | Build established: Mutant 1675 | -10/Subcaves | Core integrity fell below 20% 1928 | -10/Subcaves | Destroyed by OT-6B5(R) with Subdweller Beam Cannon Last Messages --------------- destroying it. 01245_ The unstable cave ceiling collapses. 4P-WFU(c): "I think it's somewhere southeast of here" 01275_ Acquired Battle Cannon. 4P-WFU(c): "I think it's somewhere southeast of here" 4P-WFU(c): "I think it's somewhere south of here" 01661_ Acquired 8 matter. 01676_ Y-45 Defender destroyed. 01684_ Lgt. Treads fries itself beyond repair. 01685_ Subatomizers dissect the Hvy. Assault Rifle. 01686_ Hvy. Assault Rifle fries itself beyond repair. 01692_ Imp. Ion Engine fries itself beyond repair. 4P-WFU(c): "I think it's somewhere south of here" 01784_ Acquired 23 matter. 4P-WFU(c): "I think it's somewhere south of here" 01911_ Critical hit (Meltdown: +290). Map ----- +----------------------------------------------------+ | ?????????????????????????????????????????????????? | | ?????????????????????????????????????????????????? | | ?????????????????????????????????????????????????? | | ?????????????????????????????????????????????????? | | ?????????????????????????????????????????????????? | | ?????????????????????????????????????????????????? | | ?????????????????????????????????????????????????? | | ?????????????????????????????????????????????????? | | ?????????????????????????????????????????????????? | | ?????????????????????????????????????????????????? | | ?????????????????????????????????????????????????? | | ?????????????????????????????????????????????????? | | ?????????????????????????????????????????????????? | | ??????????????? ?????????????????????????????????? | | ??????????????# ???????????????????????????????? | | ??????????????? ???????????????????????????????? | | ???????????????# ??????????????????????????????? | | ???????????????# ??????????????????????????????? | | ??????????????## ?????????????????????????????? | | ??????????????# ?????????????????????????????? | | ???????????????# %?????????????????????????????? | | ????????????????# ?????????????##?????????????? | | ???????????????## ????????????# ??????????????? | | ???????????????# #####???##?? ???????????????? | | ???????????????# #### #?%#???????????????? | | ???????????????# @ ### ###### ??? | | ???????????????# ### R #????? | | ?????????????????????# ## #?????? | | ?????????????????????# c###### ## ## # ##?????? | | ?????????????????????# #???###?##???????#??????? | | ?????????????????????# #???????????????????????? | | ?????????????????????# #???????????????????????? | | ?????????????????????# ##??????????????????????? | | ?????????????????????## ##???????###???????????? | | ??????????????????????# ##????? %#???????????? | | ??????????????????????# ###### #???????????? | | ????????????????? ##?## #????????????? | | ???????????????? #?## ##????????????? | | ??????????????? ??## ##?????????????? | | ???????????????# ???###% ##??????????????? | | ????????????????? #???## ####???????????????? | | ??####??#####????### #### #??????????????????? | | ??# #??# ###### # ## ##??????????????????? | | ?## #?## # ##??????????????????? | | ## ### ## #??????????????????? | | ## ### ## ##??????????????????? | | # #### % ## #???????????????????? | | ## #?? ## ##??????????????????? | | ### #### #?# #??????????????????? | | ##### ## ### ##??????????????????? | +----------------------------------------------------+ Best States ------------- Heat Dissipation 25 Energy Generation 10 Energy Capacity 125 Matter Stores 300 Matter Capacity 300 Sight Range 18 Terrain Scan Density 10 ECM Strength 1 Evasion (%) 55 Item Schematics ----------------- None Robot Schematics ------------------ None Fabricated ------------ Nothing Repaired ---------- Nothing Alien Tech Used ----------------- None Achievements -------------- None Challenges ------------ None Game ------ Seed ExpertGravmagFrame Manual? 0 Play Time 00:11:45 Cumulative 13.5 hours Start 2025.08.21 @ 13:18:19 End 2025.08.21 @ 13:29:34 Sessions 1 Manual Loads 0 Difficulty Rogue Special Mode None Game No. 36 Rogue 36 Adventurer 0 Explorer 0 Win Type - Total 0 Types 0/0/0/0/0/0/0/0/0/0 Lore% 9 Gallery% 21 Achievement% 19 Wizard Run 0 Options --------- Layout 1 ASCII 0 Keyboard 1 Movement Vi Keybinds 0 Fullscreen 1 Font 16/SmallcapsGlow Map View 55x38 Zoom Use 0% Tactical HUD 1 Map Filters NONE Filters NONE Steam 1 RUN: 484b0fba-93b4-4cd0-82ba-e9533d9edcc1